bitfinex-derivatives/quotes_BNBF0:USTF0_20250413
["timestamp","ask_amount","ask_price","bid_price","bid_amount"]
[1744505095224,0.30838635,596.61,595.65,3.559]
[1744505096527,0.30838635,596.6,595.65,3.559]
[1744505096728,0.30838635,596.59,595.65,3.559]
[1744505097030,0.30838635,596.58,595.65,3.559]
[1744505097222,0.30838635,596.63,595.65,3.559]
[1744505097427,0.30838635,596.62,595.65,3.559]
[1744505097624,0.30838635,596.61,595.65,3.559]
[1744505097824,0.2919904,596.62,595.65,3.559]
[1744505097825,0.30838635,596.6,595.65,3.559]
[1744505098031,0.30838635,596.61,595.65,3.559]
[1744505098332,0.30838635,596.6,595.65,3.559]
[1744505098532,0.30838635,596.61,595.65,3.559]
[1744505098828,0.30838635,596.6,595.65,3.559]
[1744505099026,0.30838635,596.61,595.65,3.559]
[1744505099730,1.27119983,596.62,595.65,3.559]
[1744505099930,0.30839755,596.61,595.65,3.559]
[1744505100530,0.29199285,596.6,595.65,3.559]
[1744505100731,0.30839755,596.59,595.65,3.559]
[1744505102430,0.30839755,596.58,595.65,3.559]
[1744505102632,1.27119983,596.61,595.65,3.559]
[1744505102933,0.30842371,596.6,595.65,3.559]
[1744505103127,0.30842371,596.59,595.65,3.559]
[1744505103330,0.30842371,596.58,595.65,3.559]
[1744505103529,0.60044474,596.59,595.65,3.559]
[1744505103829,0.30842371,596.58,595.65,3.559]
[1744505105031,0.30842371,596.57,595.65,3.559]
[1744505105227,0.30842371,596.56,595.65,3.559]
[1744505105532,0.30842371,596.55,595.65,3.559]
[1744505105731,0.30842371,596.59,595.65,3.559]
[1744505105928,0.30842371,596.58,595.65,3.559]
[1744505106132,0.63985643,596.68,595.65,3.559]
[1744505106133,1.27119983,596.56,595.65,3.559]
[1744505106325,0.30842371,596.55,595.65,3.559]
[1744505107528,1.27119983,596.56,595.65,3.559]
[1744505107733,0.30840079,596.55,595.65,3.559]
[1744505108233,1.57960062,596.55,595.65,3.559]
[1744505108428,0.30840079,596.54,595.65,3.559]
[1744505109434,0.29201613,596.53,595.65,3.559]
[1744505109638,0.30840079,596.52,595.65,3.559]
[1744505111637,0.30840079,596.51,595.65,3.559]
[1744505111838,0.30840079,596.54,595.65,3.559]
[1744505112441,0.29201123,596.53,595.65,3.559]
[1744505112633,0.30840079,596.52,595.65,3.559]
[1744505114538,0.30840079,596.54,595.65,3.559]
[1744505115445,0.29201123,596.53,595.65,3.559]
[1744505115645,0.30840079,596.52,595.65,3.559]
[1744505115843,0.30838902,596.51,595.65,3.559]
[1744505116046,0.30838902,596.52,595.65,3.559]
[1744505116346,0.30838902,596.51,595.65,3.559]
[1744505116546,0.30838902,596.52,595.65,3.559]
[1744505116845,0.30838902,596.51,595.65,3.559]
[1744505117042,0.30838902,596.52,595.65,3.559]
[1744505117242,0.30838902,596.5,595.65,3.559]
[1744505117443,0.30838902,596.49,595.65,3.559]
[1744505117647,0.30838902,596.58,595.65,3.559]
[1744505117950,0.29199653,596.48,595.65,3.559]
[1744505118346,0.30838902,596.47,595.65,3.559]
[1744505118543,0.30838902,596.58,595.65,3.559]
[1744505119147,0.29199653,596.57,595.65,3.559]
[1744505119348,0.30838902,596.56,595.65,3.559]
[1744505123454,0.30838902,596.63,595.65,3.559]
[1744505123753,0.29199408,596.55,595.65,3.559]
[1744505123948,0.30838902,596.54,595.65,3.559]
[1744505124148,0.30838902,596.63,595.65,3.559]
[1744505124347,0.30838902,596.69,595.65,3.559]
[1744505124549,0.29197815,596.62,595.65,3.559]
[1744505124747,0.30838902,596.61,595.65,3.559]
[1744505125154,0.29198795,596.6,595.65,3.559]
[1744505125354,0.30838902,596.59,595.65,3.559]
[1744505126451,0.30838902,596.69,595.65,3.559]
[1744505126649,0.30838902,596.68,595.65,3.559]
[1744505126850,0.30838902,596.69,595.65,3.559]
[1744505127053,0.30838902,596.68,595.65,3.559]
[1744505127252,0.3083748,596.67,595.65,3.559]
[1744505127454,0.3083748,596.69,595.65,3.559]
[1744505127650,0.3083748,596.66,595.65,3.559]
[1744505127851,0.3083748,596.65,595.65,3.559]
[1744505128051,0.3083748,596.64,595.65,3.559]
[1744505128256,0.3083748,596.66,595.65,3.559]
[1744505128450,0.3083748,596.65,595.65,3.559]
[1744505128655,0.3083748,596.64,595.65,3.559]
[1744505128852,0.3083748,596.66,595.65,3.559]
[1744505129055,0.3083748,596.65,595.65,3.559]
[1744505129251,0.3083748,596.66,595.65,3.559]
[1744505129453,0.3083748,596.65,595.65,3.559]
[1744505129657,0.29197815,596.65,595.65,3.559]
[1744505129853,0.3083748,596.64,595.65,3.559]
[1744505132458,0.3083748,596.69,595.65,3.559]
[1744505132654,0.3083748,596.68,595.65,3.559]
[1744505132955,0.3083748,596.69,595.65,3.559]
[1744505133158,0.3083748,596.68,595.65,3.559]
[1744505133357,0.3083748,596.69,595.65,3.559]
[1744505133558,0.291961,596.67,595.65,3.559]
[1744505133754,0.30834287,596.66,595.65,3.559]
[1744505135357,0.30832291,596.65,595.65,3.559]
[1744505135658,0.30832291,596.64,595.65,3.559]
[1744505135958,0.30832291,596.63,595.65,3.559]
[1744505136154,0.3351768,596.7,595.65,3.559]
[1744505136155,0.30832291,596.69,595.65,3.559]
[1744505136560,0.291961,596.68,595.65,3.559]
[1744505136760,0.30832291,596.67,595.65,3.559]
[1744505137060,0.30832291,596.67,595.66,0.33576201]
[1744505138458,0.30832291,596.69,595.66,0.33576201]
[1744505138661,0.29198183,596.66,595.66,0.33576201]
[1744505138962,0.30832291,596.65,595.66,0.33576201]
[1744505139759,0.30832291,596.65,595.66,0.63476201]
[1744505139956,0.30832291,596.65,595.66,1.25676201]
[1744505140962,0.30832291,596.65,595.66,2.02176201]
[1744505141460,0.30832291,596.69,595.66,2.02176201]
[1744505141660,0.30832291,596.68,595.66,2.02176201]
[1744505141859,0.29194019,596.64,595.66,2.02176201]
[1744505142063,0.30832291,596.63,595.66,2.02176201]
[1744505143361,0.30832291,596.63,595.66,2.65876201]
[1744505143566,0.30829066,596.62,595.66,2.65876201]
[1744505143760,0.30829066,596.63,595.66,2.65876201]
[1744505144065,0.30829066,596.62,595.66,2.65876201]
[1744505144264,0.30829066,596.63,595.66,2.65876201]
[1744505146673,0.29194019,596.64,595.66,2.65876201]
[1744505146871,0.30829345,596.63,595.66,2.65876201]
[1744505147469,0.30829345,597.08,595.66,2.65876201]
[1744505147671,0.29193774,596.62,595.66,2.65876201]
[1744505147868,0.30829345,596.61,595.66,2.65876201]
[1744505148066,0.30829345,597.06,595.66,2.65876201]
[1744505148269,0.64327376,597.05,595.66,2.65876201]
[1744505148471,0.33498593,597.04,595.66,2.65876201]
[1744505148671,0.30829345,597.03,595.66,2.65876201]
[1744505148869,0.6432906,597.02,595.66,2.65876201]
[1744505149069,0.64329621,597.01,595.66,2.65876201]
[1744505149273,0.30829345,597.0,595.66,2.65876201]
[1744505149470,0.33500276,597.01,595.66,2.65876201]
[1744505149471,0.30829345,596.99,595.66,2.65876201]
[1744505149767,0.30829345,596.98,595.66,2.65876201]
[1744505149973,0.30829345,597.0,595.66,2.65876201]
[1744505150167,0.30829345,596.99,595.66,2.65876201]
[1744505150365,0.30829345,597.0,595.66,2.65876201]
[1744505150565,0.30829345,596.99,595.66,2.65876201]
[1744505150766,0.30829345,597.0,595.66,2.65876201]
[1744505150966,0.30829345,596.99,595.66,2.65876201]
[1744505151271,0.30829345,596.98,595.66,2.65876201]
[1744505151472,0.30829345,596.97,595.66,2.65876201]
[1744505151667,0.30829345,596.96,595.66,2.65876201]
[1744505151869,0.30829345,596.95,595.66,2.65876201]
[1744505152066,0.30829345,596.94,595.66,2.65876201]
[1744505152267,0.30829345,596.93,595.67,0.29520029]
[1744505152472,0.30829345,596.95,595.68,0.33575073]
[1744505152671,0.30829345,596.94,595.68,0.33575073]
[1744505152868,0.30829345,596.95,595.68,0.33575073]
[1744505153573,0.29189244,596.94,595.68,0.33575073]
[1744505153773,0.30829345,596.93,595.68,0.33575073]
[1744505156474,0.30829345,597.0,595.68,0.33575073]
[1744505156671,0.29189488,596.92,595.68,0.33575073]
[1744505156876,0.30830567,596.91,595.68,0.33575073]
[1744505157081,0.30830567,596.9,595.68,0.33575073]
[1744505157279,0.30830567,597.0,595.68,0.33575073]
[1744505157479,0.33500276,597.01,595.68,0.33575073]
[1744505157480,0.30830567,596.99,595.68,0.33575073]
[1744505157679,0.29188632,596.89,595.68,0.33575073]
[1744505157880,0.30830567,596.88,595.68,0.33575073]
[1744505158079,0.30830567,596.87,595.68,0.33575073]
[1744505158376,0.30830567,596.86,595.68,0.98975073]
[1744505158680,0.30830567,596.87,595.68,0.98975073]
[1744505158879,0.30830567,596.86,595.68,0.98975073]
[1744505159080,0.30830567,596.87,595.68,0.98975073]
[1744505159381,0.29188999,596.88,595.68,0.98975073]
[1744505159382,0.30830567,596.86,595.68,0.98975073]
[1744505159582,0.30830567,596.87,595.68,0.98975073]
[1744505159984,0.3083042,596.86,595.68,0.98975073]
[1744505160186,0.3083042,596.87,595.68,0.98975073]
[1744505160483,0.3083042,596.86,595.68,0.98975073]
[1744505160684,0.3083042,596.87,595.68,0.98975073]
[1744505160877,0.3083042,596.86,595.68,0.98975073]
[1744505161082,0.3083042,596.87,595.68,0.98975073]
[1744505162687,0.33500276,597.01,595.68,0.98975073]
[1744505162886,0.30831301,597.0,595.68,0.98975073]
[1744505163585,0.29188509,596.99,595.68,0.98975073]
[1744505163789,0.30831301,596.98,595.68,0.98975073]
[1744505163987,0.30831301,596.98,595.68,1.53475073]
[1744505164187,0.33502521,596.97,595.68,1.53475073]
[1744505164387,0.30831301,596.96,595.68,1.53475073]
[1744505164884,0.30831301,596.95,595.68,1.53475073]
[1744505165088,0.30831301,596.94,595.68,1.53475073]
[1744505165289,0.30831301,596.96,595.68,1.53475073]
[1744505165587,0.29190468,596.93,595.68,1.53475073]
[1744505165990,0.30832483,596.92,595.68,1.53475073]
[1744505167290,0.30832483,596.92,595.68,2.23375073]
[1744505168489,0.30832483,596.96,595.68,2.23375073]
[1744505168691,0.29190958,596.91,595.68,2.23375073]
[1744505168891,0.30832483,596.9,595.68,2.23375073]
[1744505170292,0.29190958,596.91,595.68,2.23375073]
[1744505170488,0.30830495,596.9,595.68,2.23375073]
[1744505170687,0.29190958,596.91,595.68,2.23375073]
[1744505170887,0.30830379,596.9,595.68,2.23375073]
[1744505171594,0.30830379,596.96,595.68,2.23375073]
[1744505171893,0.30830379,596.96,595.68,2.53275073]
[1744505172492,0.29189244,596.95,595.68,2.53275073]
[1744505172691,0.30830379,596.94,595.68,2.53275073]
[1744505173893,0.29189244,596.95,595.68,2.53275073]
[1744505174191,0.30829778,596.94,595.68,2.53275073]
[1744505174589,0.30829778,596.96,595.68,2.53275073]
[1744505174787,0.30829778,596.95,595.68,2.53275073]
[1744505174988,0.30829778,596.94,595.68,2.53275073]
[1744505175197,0.30829778,596.93,595.68,2.53275073]
[1744505175395,0.30829778,596.96,595.68,2.53275073]
[1744505175595,0.29189244,596.93,595.68,2.53275073]
[1744505175797,0.30829778,596.92,595.68,2.53275073]
[1744505177095,0.29189244,596.93,595.68,2.53275073]
[1744505177296,0.3082879,596.92,595.68,2.53275073]
[1744505177494,1.27119983,596.85,595.68,2.53275073]
[1744505177692,0.3082879,596.84,595.68,3.05375073]
[1744505178598,0.29189244,596.83,595.68,3.05375073]
[1744505178798,0.3082879,596.82,595.68,3.05375073]
[1744505180598,0.3082879,596.81,595.68,3.05375073]
[1744505180902,0.3082879,596.8,595.68,3.05375073]
[1744505181093,0.3082879,596.96,595.68,3.05375073]
[1744505181503,0.2918704,596.79,595.68,3.05375073]
[1744505181801,0.3082879,596.96,595.68,3.05375073]
[1744505181802,0.3082879,596.78,595.68,3.05375073]
[1744505181997,0.3082879,596.96,595.68,3.05375073]
[1744505182702,0.2918704,596.95,595.68,3.05375073]
[1744505182903,0.3082879,596.94,595.68,3.05375073]
[1744505183703,0.30824543,596.93,595.68,3.05375073]
[1744505183896,0.30824543,596.96,595.68,3.05375073]
[1744505184098,0.30824543,596.95,595.68,3.05375073]
[1744505184299,0.30824543,596.96,595.68,3.05375073]
[1744505184505,0.2918704,596.94,595.68,3.05375073]
[1744505184698,0.30824543,596.93,595.68,3.05375073]
[1744505186606,0.30824543,596.96,595.68,3.05375073]
[1744505187502,0.2918704,596.95,595.68,3.05375073]
[1744505187705,0.30824543,596.94,595.68,3.05375073]
[1744505189506,0.30824543,596.96,595.68,3.05375073]
[1744505190007,0.33502521,596.97,595.68,3.05375073]
[1744505190207,0.30825826,596.96,595.68,3.05375073]
[1744505190507,0.60008705,596.96,595.68,3.05375073]
[1744505190703,0.30825826,596.95,595.68,3.05375073]
[1744505192506,0.30825826,596.96,595.68,3.05375073]
[1744505192711,0.30825826,596.95,595.68,3.05375073]
[1744505192910,0.30825826,596.96,595.68,3.05375073]
[1744505193109,0.30825826,596.95,595.68,3.05375073]
[1744505193306,0.30825826,596.96,595.68,3.05375073]
[1744505193506,0.2918704,596.94,595.68,3.05375073]
[1744505193713,0.30825826,596.93,595.68,3.05375073]
[1744505195607,0.30825826,596.96,595.68,3.05375073]
[1744505195810,0.30825826,596.95,595.68,3.05375073]
[1744505196017,0.30825826,596.96,595.68,3.05375073]
[1744505196211,0.30825826,596.95,595.68,3.05375073]
[1744505196417,0.30825826,596.96,595.68,3.05375073]
[1744505196618,0.60012149,596.95,595.68,3.05375073]
[1744505196818,0.30825109,596.94,595.68,3.05375073]
[1744505198218,0.2918704,596.95,595.68,3.05375073]
[1744505198419,0.30825299,596.94,595.68,3.05375073]
[1744505198619,0.30825299,596.96,595.68,3.05375073]
[1744505198819,0.30825299,596.95,595.68,3.05375073]
[1744505199020,0.30825299,596.96,595.68,3.05375073]
[1744505199320,0.30825299,596.95,595.68,3.05375073]
[1744505199521,0.2918704,596.95,595.68,3.05375073]
[1744505199720,0.30825299,596.94,595.68,3.05375073]
[1744505204517,0.30825299,596.96,595.68,3.05375073]
[1744505204722,0.30825299,596.93,595.68,3.05375073]
[1744505204921,0.30825299,596.92,595.68,3.05375073]
[1744505205120,0.30825299,596.91,595.68,3.05375073]
[1744505205324,0.30825299,596.96,595.68,3.05375073]
[1744505205523,0.30825299,596.95,595.68,3.05375073]
[1744505205720,0.2918704,596.9,595.68,3.05375073]
[1744505205920,0.30825299,596.89,595.68,3.05375073]
[1744505207528,0.30825299,596.88,595.68,3.05375073]
[1744505207724,0.29187897,596.88,595.68,3.05375073]
[1744505207924,0.30825299,596.87,595.68,3.05375073]
[1744505209727,0.29187897,596.88,595.68,3.05375073]
[1744505209922,0.30825573,596.87,595.69,0.29516169]
[1744505210120,0.30825573,596.87,595.7,0.33573946]
[1744505212529,0.30825573,596.87,595.71,0.58]
[1744505212730,0.30825573,596.87,595.72,0.33572819]
[1744505213526,0.30825573,596.96,595.72,0.33572819]
[1744505213731,0.29186428,596.86,595.72,0.33572819]
[1744505213925,0.30825573,596.85,595.73,0.299]
[1744505214128,0.30825573,596.85,595.74,0.33571692]
[1744505214331,0.30825573,596.96,595.74,0.33571692]
[1744505214632,0.33502521,596.97,595.74,0.33571692]
[1744505214831,0.30823088,596.96,595.74,0.33571692]
[1744505215232,0.29186184,596.95,595.74,0.33571692]
[1744505215426,0.30823088,596.94,595.74,0.33571692]
[1744505216436,0.30823088,596.96,595.74,0.33571692]
[1744505216634,0.29186428,596.93,595.75,0.583]
[1744505216834,0.30823088,596.92,595.76,0.33570565]
[1744505217836,0.29186428,596.93,595.76,0.33570565]
[1744505218136,0.30823045,596.92,595.76,0.33570565]
[1744505219337,0.30823045,596.92,595.77,0.579]
[1744505219536,0.30823045,596.92,595.78,0.33569438]
[1744505220837,0.29186428,596.93,595.78,0.33569438]
[1744505221035,0.30823362,596.92,595.78,0.33569438]
[1744505222535,0.30823362,596.96,595.78,0.33569438]
[1744505222735,0.30823362,596.95,595.78,0.33569438]
[1744505222938,0.30823362,596.96,595.78,0.33569438]
[1744505223546,0.29185694,596.95,595.78,0.33569438]
[1744505223841,0.30823116,596.94,595.78,0.33569438]
[1744505225346,0.33502521,596.97,595.78,0.33569438]
[1744505225545,0.30823359,596.96,595.78,0.33569438]
[1744505226547,0.29185694,596.95,595.78,0.33569438]
[1744505226741,0.30823359,596.94,595.78,0.33569438]
[1744505228546,0.30823359,596.96,595.78,0.33569438]
[1744505228746,0.29185939,596.93,595.78,0.33569438]
[1744505228946,0.30823359,596.92,595.78,0.33569438]
[1744505230148,0.29185939,596.93,595.78,0.33569438]
[1744505230447,0.30823897,596.92,595.78,0.33569438]
[1744505230642,0.29185939,596.93,595.78,0.33569438]
[1744505230643,0.30823496,596.91,595.78,0.33569438]
[1744505230846,0.30823496,596.92,595.78,0.63469438]
[1744505233351,0.29185939,596.93,595.78,0.63469438]
[1744505233651,0.30823881,596.92,595.78,0.63469438]
[1744505233850,0.30823881,596.91,595.78,0.63469438]
[1744505234052,0.30823881,596.92,595.78,0.63469438]
[1744505234248,0.30823881,596.91,595.78,0.63469438]
[1744505234452,0.30823881,596.9,595.78,0.63469438]
[1744505234652,0.30823881,596.89,595.78,0.63469438]
[1744505234951,0.33502521,596.97,595.78,0.63469438]
[1744505235152,0.30823922,596.96,595.78,0.63469438]
[1744505235351,0.30823922,596.95,595.78,0.63469438]
[1744505235653,0.30823922,596.94,595.78,0.63469438]
[1744505235952,0.30823922,596.93,595.78,0.63469438]
[1744505236247,0.30823922,596.92,595.78,0.63469438]
[1744505236453,0.30823922,596.91,595.78,0.63469438]
[1744505236648,0.30823922,596.94,595.78,0.63469438]
[1744505236951,0.30823922,596.93,595.78,0.63469438]
[1744505237147,1.27119983,596.88,595.78,0.63469438]
[1744505237352,0.30823922,596.87,595.78,0.63469438]
[1744505238654,0.29186673,596.86,595.78,0.63469438]
[1744505238850,0.30823922,596.85,595.78,0.63469438]
[1744505239951,0.30823759,596.84,595.78,1.15769438]
[1744505240153,0.30823759,596.85,595.78,1.15769438]
[1744505240350,0.30823759,596.84,595.78,1.62869438]
[1744505240549,0.30823759,596.83,595.78,1.62869438]
[1744505240755,0.29186673,596.86,595.78,1.62869438]
[1744505240756,0.30823759,596.82,595.78,1.62869438]
[1744505240954,0.30823759,596.85,595.78,1.62869438]
[1744505241255,0.30823759,596.84,595.78,1.62869438]
[1744505241455,0.30823759,596.83,595.78,1.62869438]
[1744505241659,0.30823759,596.85,595.78,1.62869438]
[1744505241855,0.30823759,596.84,595.78,1.62869438]
[1744505242052,0.30823759,596.83,595.78,1.62869438]
[1744505242251,0.30823759,596.85,595.78,1.62869438]
[1744505242557,0.30823759,596.84,595.78,1.62869438]
[1744505242754,0.30823759,596.85,595.78,1.62869438]
[1744505243056,0.29186673,596.86,595.78,1.62869438]
[1744505243256,0.30824834,596.85,595.78,1.62869438]
[1744505243658,0.30824834,596.87,595.78,1.62869438]
[1744505243859,0.29186918,596.84,595.78,1.62869438]
[1744505244058,0.30824834,596.83,595.78,2.30969438]
[1744505244658,0.29186918,596.84,595.78,2.30969438]
[1744505244859,0.30823776,596.83,595.78,2.30969438]
[1744505246557,0.30823776,596.85,595.78,2.30969438]
[1744505246755,0.29187163,596.82,595.78,2.30969438]
[1744505247060,0.30823776,596.81,595.78,2.30969438]
[1744505247860,0.29187163,596.82,595.78,2.30969438]
[1744505248061,0.30824019,596.81,595.78,2.30969438]
[1744505248362,0.30824019,596.81,595.78,3.30169438]
[1744505249457,0.30824019,596.84,595.78,3.30169438]
[1744505249658,0.2918704,596.8,595.78,3.30169438]
[1744505249860,0.30824019,596.79,595.78,3.30169438]
[1744505252564,0.30824019,596.84,595.78,3.30169438]
[1744505252760,0.30824019,596.83,595.78,3.30169438]
[1744505252964,0.30824019,596.82,595.78,3.30169438]
[1744505253164,0.30824019,596.84,595.78,3.30169438]
[1744505253661,0.2918704,596.83,595.78,3.30169438]
[1744505253863,0.30824019,596.82,595.79,0.29513444]
[1744505254665,0.30824019,596.82,595.8,0.33568311]
[1744505254865,0.30824019,596.82,595.81,0.29513444]
[1744505255065,0.30824019,596.82,595.82,0.33567184]
[1744505255765,0.30824019,596.84,595.82,0.33567184]
[1744505256566,0.29186306,596.83,595.82,0.33567184]
[1744505256765,0.30824019,596.82,595.82,0.33567184]
[1744505257766,0.30824019,596.82,595.83,0.299]
[1744505257966,0.30824019,596.82,595.84,0.33566058]
[1744505260667,0.29186306,596.83,595.84,0.33566058]
[1744505260863,0.30823378,596.82,595.84,0.33566058]
[1744505261566,0.30823378,596.87,595.84,0.33566058]
[1744505261762,0.29185327,596.81,595.84,0.33566058]
[1744505261966,0.30823378,596.8,595.84,0.33566058]
[1744505264563,0.30823378,596.87,595.84,0.33566058]
[1744505265070,0.30823378,596.87,595.85,0.537]
[1744505265368,0.30823378,596.87,595.86,0.33564931]
[1744505265566,1.27119983,596.88,595.86,0.33564931]
[1744505265766,0.29185204,596.86,595.87,0.613]
[1744505265963,0.30823462,596.85,595.88,0.33563804]
[1744505267672,0.30823462,596.87,595.88,0.33563804]
[1744505267871,0.30823462,596.84,595.88,0.33563804]
[1744505268171,0.30823462,596.83,595.88,0.33563804]
[1744505268366,0.30823462,596.87,595.88,0.33563804]
[1744505268566,0.30823462,596.86,595.88,0.33563804]
[1744505268770,0.29184837,596.82,595.88,0.33563804]
[1744505269073,0.30823462,596.81,595.89,0.677]
[1744505269368,0.30823462,596.81,595.89,1.01263241]
[1744505270576,0.30823462,596.86,595.89,1.01263241]
[1744505271675,0.29184715,596.85,595.89,1.01263241]
[1744505271973,0.30823462,596.84,595.89,1.01263241]
[1744505273675,0.30823462,596.83,595.89,1.01263241]
[1744505273870,0.30823462,596.82,595.89,1.01263241]
[1744505276574,0.30823462,596.86,595.9,0.33562678]
[1744505276774,0.2918447,596.81,595.9,0.33562678]
[1744505276972,0.30823462,596.8,595.9,0.33562678]
[1744505279684,0.60008666,596.79,595.9,0.33562678]
[1744505279881,0.30823462,596.78,595.9,0.33562678]
[1744505281279,0.29185204,596.79,595.9,0.33562678]
[1744505281480,0.30823902,596.78,595.9,0.33562678]
[1744505282476,0.30823902,596.77,595.9,0.33562678]
[1744505282683,0.29185449,596.77,595.9,0.33562678]
[1744505283076,0.30823902,596.76,595.9,0.33562678]
[1744505284185,0.30823902,596.76,595.9,0.99662678]
[1744505285686,0.29185572,596.75,595.9,0.99662678]
[1744505286387,0.30824133,596.74,595.9,0.99662678]
[1744505288488,0.30824133,596.84,595.9,0.99662678]
[1744505288683,0.29185816,596.73,595.9,0.99662678]
[1744505288883,0.30824133,596.72,595.9,1.29562678]
[1744505289182,0.30824133,596.71,595.9,1.29562678]
[1744505289383,0.30824133,596.84,595.9,1.29562678]
[1744505289588,0.30824133,596.83,595.9,1.29562678]
[1744505289789,0.30824133,596.84,595.9,1.29562678]
[1744505290089,0.30824133,596.84,595.9,1.85262678]
[1744505290288,0.29184593,596.83,595.9,1.85262678]
[1744505290488,0.30824133,596.82,595.9,1.85262678]
[1744505290684,0.29184593,596.83,595.9,1.85262678]
[1744505290889,0.30824457,596.82,595.9,1.85262678]
[1744505291188,0.29184593,596.83,595.9,1.85262678]
[1744505291389,0.30824457,596.82,595.9,1.85262678]
[1744505294390,1.27119983,596.96,595.9,2.58062678]
[1744505294589,0.60008269,596.81,595.9,2.58062678]
[1744505294891,0.30823432,596.8,595.9,2.58062678]
[1744505295090,0.30823432,596.95,595.9,2.58062678]
[1744505296092,0.29182757,596.94,595.9,2.58062678]
[1744505296390,0.30823432,596.93,595.9,2.58062678]
[1744505297687,0.29182757,596.92,595.9,2.58062678]
[1744505297892,0.30823432,596.91,595.9,2.58062678]
[1744505299294,0.30822212,596.9,595.9,2.58062678]
[1744505299490,0.30822212,596.89,595.9,2.58062678]
[1744505299690,0.30822212,596.91,595.9,2.58062678]
[1744505299891,0.30822212,596.9,595.9,2.58062678]
[1744505300192,0.30822212,596.89,595.9,2.58062678]
[1744505300495,0.30822212,596.88,595.9,2.58062678]
[1744505300692,0.29183246,596.88,595.9,2.58062678]
[1744505300892,0.30823503,596.87,595.9,2.58062678]
[1744505302393,0.29183246,596.88,595.9,2.58062678]
[1744505302589,0.30823507,596.87,595.9,2.58062678]
[1744505302794,0.30823507,596.87,595.9,3.03362678]
[1744505303597,0.30823507,596.96,595.9,3.03362678]
[1744505303796,0.29183736,596.86,595.9,3.03362678]
[1744505303995,1.27119983,596.94,595.9,3.03362678]
[1744505304191,0.30823528,596.93,595.9,3.03362678]
[1744505304896,0.29183002,596.92,595.9,3.03362678]
[1744505305097,0.30823528,596.91,595.9,3.03362678]
[1744505306597,0.30823528,596.93,595.9,3.03362678]
[1744505306799,0.29183246,596.9,595.9,3.03362678]
[1744505307004,0.30823528,596.89,595.9,3.03362678]
[1744505307293,0.29183246,596.9,595.9,3.03362678]
[1744505307497,0.30822375,596.89,595.9,3.03362678]
[1744505309699,0.30822375,596.88,595.9,3.03362678]
[1744505309897,0.29183002,596.88,595.9,3.03362678]
[1744505310095,0.30822375,596.87,595.9,3.03362678]
[1744505315306,0.29183002,596.88,595.9,3.03362678]
[1744505315507,0.30820846,596.87,595.9,3.03362678]
[1744505315709,0.60004092,596.86,595.9,3.03362678]
[1744505315908,0.30820846,596.85,595.9,3.03362678]
[1744505318510,1.27119983,596.93,595.9,3.03362678]
[1744505318708,0.30820847,596.92,595.9,3.03362678]
[1744505318907,0.30820847,596.93,595.9,3.03362678]
[1744505319613,0.29182512,596.92,595.9,3.03362678]
[1744505319809,0.30820847,596.91,595.9,3.03362678]
[1744505320114,0.29182512,596.92,595.9,3.03362678]
[1744505320314,0.30820747,596.91,595.9,3.03362678]
[1744505321716,0.29182512,596.9,595.9,3.03362678]
[1744505321915,0.30819375,596.89,595.9,3.03362678]
[1744505323414,0.29182512,596.9,595.9,3.03362678]
[1744505323615,0.30819208,596.89,595.9,3.03362678]
[1744505324614,0.30819208,596.96,595.9,3.03362678]
[1744505324815,0.29181901,596.88,595.9,3.03362678]
[1744505325115,0.30819208,596.87,595.9,3.03362678]
[1744505325310,1.60622504,596.97,595.9,3.03362678]
[1744505325613,0.30819267,596.96,595.9,3.03362678]
[1744505326016,0.60001168,596.96,595.9,3.03362678]
[1744505326209,0.30819267,596.95,595.9,3.03362678]
[1744505326616,0.29181901,596.96,595.9,3.03362678]
[1744505326809,0.30819019,596.95,595.9,3.03362678]
[1744505327014,0.30819019,596.95,595.9,3.73162678]
[1744505327717,0.30819019,596.94,595.9,3.73162678]
[1744505328018,0.30819019,596.93,595.9,3.73162678]
[1744505328312,0.30819019,596.92,595.9,3.73162678]
[1744505328511,0.30819019,596.96,595.9,3.73162678]
[1744505328715,0.29181901,596.91,595.9,3.73162678]
[1744505328913,0.30819019,596.9,595.9,3.73162678]
[1744505329918,0.30818735,596.89,595.9,3.73162678]
[1744505330119,0.30818735,596.9,595.9,3.73162678]
[1744505330520,0.30818735,596.96,595.9,3.73162678]
[1744505330819,0.29181901,596.89,595.9,3.73162678]
[1744505331019,0.30818735,596.88,595.9,3.73162678]
[1744505331216,0.30818735,596.96,595.9,3.73162678]
[1744505331612,0.30818735,596.95,595.9,3.73162678]
[1744505331918,0.30818735,596.94,595.9,3.73162678]
[1744505332119,0.30818735,597.03,595.9,3.73162678]
[1744505332320,0.29178597,596.94,595.9,3.73162678]
[1744505332614,0.30818735,596.93,595.9,3.73162678]
[1744505332819,0.2917872,596.93,595.9,3.73162678]
[1744505333338,1.27119983,597.04,595.9,3.73162678]